Cogmind - Beta 12 @@@ ROGUE MODE // 2023.10.04 @ 19:14:04 Player: anya Result: Self-destructed Performance ------------- Evolutions (1) 500 Regions Visited (3) 600 Robots Destroyed (35) 175 Value Destroyed (454) 454 Prototype IDs (0) 0 Alien Tech Used (0) 0 Bonus (0) 0 TOTAL SCORE: 1729 Bonus ------- None Cogmind --------- Core Integrity 400/400 Matter 270/300 Energy 2/100 System Corruption 0% Temperature Cool (0) Movement Flying (35) Location -9/Materials Parts ------- > --- POWER (2) -------- (None) > --- PROPULSION (2) --- Flight Unit VTOL Module > --- UTILITY (2) ------ ECM Suite Tractor Beam > --- WEAPON (3) ------- Small Laser > --- INVENTORY (5) ---- Wheel Peak State ------------ > --- POWER ------------ Ion Engine > --- PROPULSION ------- Wheel Wheel > --- UTILITY ---------- Heat Sink Medium Matter Pod > --- WEAPON ----------- EM Pulse Gun Small Laser > --- INVENTORY -------- Wheel [Rating: 7] Favorites ----------- Power Light Ion Engine Engine Light Ion Engine Propulsion Wheel Wheel Wheel Hover Unit Hover Unit Flight Unit Flight Unit Utility ECM Suite Device ECM Suite Storage Medium Matter Pod Processor Signal Interpreter Weapon Small Laser Energy Gun Small Laser Energy Cannon Beam Cannon Ballistic Gun Light Assault Rifle Special Melee Weapon Datajack Build | -11 -10 -10 -9 ------- Run | Jun Mat Min Mat Slots Evolved 2 | . . . 2 Power 1 | . . . 1 Propulsion . | . . . . Utility . | . . . . Weapon 1 | . . . 1 Parts Attached 35 | 13 19 . 3 Power 5 | 3 2 . . Engine 5 | 3 2 . . Core . | . . . . Reactor . | . . . . Propulsion 14 | 5 6 . 3 Treads . | . . . . Leg . | . . . . Wheel 10 | 5 4 . 1 Hover 2 | . 2 . . Flight 2 | . . . 2 Utility 6 | 2 4 . . Device 3 | 1 2 . . Storage 2 | 1 1 . . Processor 1 | . 1 . . Hackware . | . . . . Protection . | . . . . Artifact . | . . . . Weapon 10 | 3 7 . . Energy Gun 6 | 3 3 . . Energy Cannon 1 | . 1 . . Ballistic Gun 1 | . 1 . . Ballistic Cannon . | . . . . Launcher . | . . . . Special Weapon . | . . . . Impact Weapon . | . . . . Slashing Weapon . | . . . . Piercing Weapon . | . . . . Special Melee Weapon 2 | . 2 . . Unidentified Prototypes . | . . . . Corrupted Parts 3 | 2 1 . . System Corruption 5 | 3 2 . . Parts Lost 6 | . 4 2 . Power 1 | . . 1 . Propulsion 1 | . 1 . . Utility 1 | . 1 . . Weapon 3 | . 2 1 . Highest Loss Streak 3 | . 3 2 . To Critical Strikes . | . . . . Average Slot Usage (%) 87 | . 91 95 55 Engine 10 | . 12 11 . Wheel 13 | . 12 28 2 Hover 9 | . 13 . . Flight 2 | . . . 19 Device 17 | . 13 28 22 Storage 6 | . 9 . . Energy Gun 12 | . 11 14 11 Energy Cannon 6 | . 8 . . Ballistic Gun 5 | . 4 11 . Special Melee Weapon 1 | . 2 . . Naked Turns . | . . . . Heaviest Build 12 | 11 12 8 4 Greatest Support 20 | 20 20 20 3 Greatest Overweight (x) 3 | 1 3 2 1 Average Overweight (x) . | . . . 1 Largest Inventory Capacity 5 | 5 5 5 5 Average Capacity 5 | 5 5 5 5 Most Carried 3 | 2 3 1 2 Average Carried . | . 1 . 1 Final Capacity 5 | 5 5 5 5 Final Carried 1 | 1 . 1 1 Class Distribution -------------------- 63% | Mutant 36% | Scavenger-Mutant Dominant Class ---------------- Mutant | -10/Materials Scavenger-Mutant | -10/Mines Mutant | -9/Materials Resources | -11 -10 -10 -9 ----------- Run | Jun Mat Min Mat Matter Collected 726 | 401 304 21 . Remotely 51 | . 30 21 . Salvage Created 951 | 112 746 93 . Parts 70 | 15 52 3 . Haulers Intercepted . | . . . . Recyclers Shooed 1 | . . 1 . Parts Field Recycled . | . . . . Retrieved Matter . | . . . . Parts Self-Destructed . | . . . . Prevented . | . . . . Kills | -11 -10 -10 -9 ------- Run | Jun Mat Min Mat Combat Hostiles Destroyed 14 | 1 9 4 . Guns 11 | 1 6 4 . Cannons 3 | . 3 . . Classes Destroyed 8 | 3 5 . . Worker 9 | 1 8 . . Builder 5 | . 5 . . Tunneler 3 | 3 . . . Recycler 2 | . 2 . . Mechanic 1 | . 1 . . Operator 1 | . 1 . . Swarmer 6 | . 3 3 . Grunt 8 | 1 6 1 . Best Kill Streak 5 | 2 5 2 . Combat Bots Only 3 | 1 3 2 . Max Kills in Single Turn 2 | 1 2 2 . Gunslinging 1 | . . 1 . Exploded . | . . . . Melee . | . . . . Uniques/NPCs Destroyed . | . . . . Combat | -11 -10 -10 -9 -------- Run | Jun Mat Min Mat Damage Taken 678 | 64 308 306 . Core 219 | . 86 133 . Absorbed by Shields . | . . . . Regen/Repaired (Parts) 11 | . 11 . . Core Remaining (%) 56 | 100 . 12 . Volleys Fired 109 | 19 71 19 . Largest 2 | 2 2 2 . Hottest 100 | 80 100 60 . Shots Fired 180 | 26 121 33 . Gun 148 | 26 89 33 . Cannon 32 | . 32 . . Launcher . | . . . . Special . | . . . . Kinetic 45 | . 31 14 . Thermal 98 | 13 66 19 . Explosive . | . . . . Electromagnetic 37 | 13 24 . . Robot Hit Streak 12 | 5 12 6 . Robot Miss Streak 4 | 3 4 3 . Penetration Max . | . . . . Secondary Targets 1 | . . 1 . Max Gunslinging Chain 1 | . . 1 . Shots Hit Robots 110 | 14 76 20 . Core Hits 51 | 6 38 7 . Critical Kills . | . . . . Critical Parts Destroyed . | . . . . Critical Strikes . | . . . . Melee Attacks 6 | . 6 . . Impact . | . . . . Slashing . | . . . . Piercing . | . . . . Sneak Attacks 6 | . 6 . . Combat Hostiles . | . . . . Follow-up Attacks . | . . . . Damage Inflicted 1327 | 180 926 221 . Guns 929 | 180 528 221 . Cannons 398 | . 398 . . Explosions . | . . . . Melee . | . . . . Ramming . | . . . . Kinetic 209 | . 118 91 . Thermal 828 | 86 612 130 . Explosive . | . . . . Electromagnetic 290 | 94 196 . . Impact . | . . . . Slashing . | . . . . Piercing . | . . . . Highest Corruption 6 | 3 6 6 . Average Corruption 4 | 1 4 6 . Corruption Purged . | . . . . Corruption Blocked . | . . . . Effects 30 | 3 21 6 . Message Errors 6 | . 4 2 . Matter Fused 9 | 2 6 1 . Heat Flow Errors 4 | . 3 1 . Energy Discharges 5 | 1 3 1 . Parts Rejected 1 | . 1 . . Data Loss (minor) 2 | . 1 1 . Data Loss (major) 1 | . 1 . . Weapon Failures 2 | . 2 . . Overload Shots . | . . . . Overflow Damage . | . . . . Projectiles . | . . . . Explosions . | . . . . Melee . | . . . . Knockbacks . | . . . . Impact . | . . . . Kinetic . | . . . . Secondary . | . . . . Self-Inflicted Damage . | . . . . Shots . | . . . . Rammed 1 | . 1 . . Targets Rammed 1 | . 1 . . Kicked . | . . . . Crushed . | . . . . Highest Temperature 489 | 78 489 197 . Average Temperature 90 | 28 98 81 . Received Heat Transfer 288 | 36 81 171 . Effects 6 | . 6 . . Shutdowns 1 | . 1 . . Energy Bleed 1 | . 1 . . Interference 2 | . 2 . . Short Circuit 1 | . 1 . . Damage (minor) 1 | . 1 . . Siege Activations . | . . . . Robots Corrupted . | . . . . Combat Hostiles . | . . . . Parts Fried . | . . . . Impact Corruptions . | . . . . Robots Melted . | . . . . Combat Hostiles . | . . . . Parts Melted 2 | . 2 . . Heat Transferred 1826 | 200 1326 300 . Parts Sabotaged . | . . . . Parts Stolen . | . . . . Parts Stripped . | . . . . Power Chain Reactions . | . . . . Missiles Intercepted . | . . . . Alert | -11 -10 -10 -9 ------- Run | Jun Mat Min Mat Peak Influence 223 | 40 223 161 62 Initial 71 | . 26 71 62 Average 82 | 20 100 94 62 Maximum Alert Level 1 | . 1 . . Low Security (%) 98 | 100 97 100 100 Level 1 1 | . 2 . . Level 2 . | . . . . Level 3 . | . . . . Level 4 . | . . . . Level 5 . | . . . . High Security . | . . . . Max Security . | . . . . Squads Dispatched 2 | . 2 . . Investigation 1 | . 1 . . Extermination . | . . . . Reinforcement 1 | . 1 . . Assault . | . . . . Garrison . | . . . . Intercept . | . . . . Searches Triggered . | . . . . Construction Impeded . | . . . . Haulers Reinforced . | . . . . Active Scanning Responses . | . . . . Cargo Convoy Interrupts . | . . . . Stealth | -11 -10 -10 -9 --------- Run | Jun Mat Min Mat Distress Signals 1 | . 1 . . Communications Jammed . | . . . . Distress Signals . | . . . . Times Spotted 23 | 1 16 6 . Peak Tracking Total 4 | 1 4 3 . Tactical Retreats 4 | . 2 2 . Traps | -11 -10 -10 -9 ------- Run | Jun Mat Min Mat Traps Triggered . | . . . . Indirectly . | . . . . Trap Hack Attempts . | . . . . Triggered . | . . . . Disarmed . | . . . . Reprogrammed . | . . . . Reused . | . . . . Traps Extracted . | . . . . Installed . | . . . . Triggered 1 | . . 1 . Machines | -11 -10 -10 -9 ---------- Run | Jun Mat Min Mat Machines Disabled . | . . . . Max in Single Turn . | . . . . Machines Repaired . | . . . . Machines Sabotaged . | . . . . Overloaded Fab Kills . | . . . . Hacking | -11 -10 -10 -9 --------- Run | Jun Mat Min Mat Machines Accessed 3 | . 3 . . Terminals 1 | . 1 . . Fabricators . | . . . . Repair Stations 1 | . 1 . . Recycling Units 1 | . 1 . . Scanalyzers . | . . . . Garrison Access . | . . . . Total Hacks 12 | . 12 . . Successful 8 | . 8 . . Failed 4 | . 4 . . Catastrophic . | . . . . Database Lockouts . | . . . . Manual 1 | . 1 . . Terminals 4 | . 4 . . Fabricators . | . . . . Repair Stations 3 | . 3 . . Recycling Units 5 | . 5 . . Scanalyzers . | . . . . Garrison Access . | . . . . Terminal Hacks 3 | . 3 . . Record 1 | . 1 . . Dispatch Records 1 | . 1 . . Hauler Manifests 1 | . 1 . . Fabricator Hacks . | . . . . Repair Station Hacks 2 | . 2 . . Scan Component 1 | . 1 . . Repair 1 | . 1 . . Recycling Unit Hacks 3 | . 3 . . Recycle Component 2 | . 2 . . Process 1 | . 1 . . Scanalyzer . | . . . . Garrison Access Hacks . | . . . . Unauthorized Hacks . | . . . . Terminals . | . . . . Fabricators . | . . . . Repair Stations . | . . . . Recycling Units . | . . . . Scanalyzers . | . . . . Garrison Access . | . . . . Data Cores Recovered 1 | . 1 . . Used . | . . . . Hacking Detections 3 | . 3 . . Full Trace Events 3 | . 3 . . Feedback Events 1 | . 1 . . Corruption 1 | . 1 . . Feedback Blocked . | . . . . Robot Schematics Acquired . | . . . . Robots Built . | . . . . Authchips . | . . . . Time . | . . . . Total Robot Build Rating . | . . . . Part Schematics Acquired . | . . . . Parts Built . | . . . . Authchips . | . . . . Time . | . . . . Total Part Build Rating . | . . . . Parts Repaired 1 | . 1 . . Time 26 | . 26 . . Parts Recycled 2 | . 2 . . Recycled Matter 169 | . 169 . . Retrieved Matter . | . . . . Retrieved Components . | . . . . Parts Scanalyzed . | . . . . Part Schematics Acquired . | . . . . Parts Damaged . | . . . . Bothacking | -11 -10 -10 -9 ------------ Run | Jun Mat Min Mat Used RIF Installer . | . . . . Robots Hacked 3 | . 3 . . Non-combat 3 | . 3 . . Combat . | . . . . Robot Hacks Applied 5 | . 5 . . parse_system 2 | . 2 . . no_distress 3 | . 3 . . Relay Couplers Released . | . . . . Fabnet Peak Effective % . | . . . . Robots Rewired . | . . . . Allies Hacked . | . . . . Hacks Repelled . | . . . . Allies | -11 -10 -10 -9 -------- Run | Jun Mat Min Mat Total Allies . | . . . . Largest Group . | . . . . Highest-Rated Group . | . . . . Highest-Rated Ally . | . . . . Total Orders . | . . . . Ally Attacks . | . . . . Total Damage . | . . . . Kills . | . . . . Allies Corrupted . | . . . . Allies Melted . | . . . . Intel | -11 -10 -10 -9 ------- Run | Jun Mat Min Mat Robot Analysis Total . | . . . . Derelict Logs Recovered . | . . . . Drone Launches . | . . . . Drone Recoveries . | . . . . Exploration | -11 -10 -10 -9 ------------- Run | Jun Mat Min Mat Turns Passed 1189 | 188 698 179 124 Spaces Moved 622 | 122 362 130 8 Core 155 | 27 79 41 8 Treads . | . . . . Legs . | . . . . Wheels 341 | 95 157 89 . Hover 126 | . 126 . . Flight . | . . . . Fastest Speed 50 | 50 56 80 100 Average Speed 89 | 74 91 96 100 Slowest Speed 200 | 95 200 150 100 Overloaded Moves . | . . . . Propulsion Burnouts . | . . . . Robots Hopped . | . . . . Cave-ins Triggered . | . . . . Exploration Rate (%) 18 | 7 40 23 2 Regions Visited 3 Branch Regions 1 Pre-discovered Areas 1 | . . 1 . Known Exits Taken . | . . . . Unknown Exits Taken 3 | 1 1 1 . Scrap Searched . | . . . . Spaces Dug . | . . . . Terrain Destroyed . | . . . . Melee . | . . . . Projectile . | . . . . AOE . | . . . . Terrain Rammed . | . . . . Walls Destroyed . | . . . . Machines Disabled . | . . . . Actions | -11 -10 -10 -9 --------- Run | Jun Mat Min Mat Total 1074 | 191 607 153 123 Wait 264 | 24 126 4 110 Move 619 | 121 361 129 8 Hop . | . . . . Pick Up 28 | 11 15 1 1 Fast Attach . | . . . . Attach 14 | 7 7 . . Detach 1 | . 1 . . Swap 21 | 6 12 . 3 Drop 11 | 3 7 . 1 Fire 109 | 19 71 19 . Melee 6 | . 6 . . Ram 1 | . 1 . . Kick . | . . . . Crush . | . . . . Escape Stasis . | . . . . Rewire . | . . . . Trap . | . . . . Miscellaneous . | . . . . Route ------- -11/Junkyard -10/Materials -10/Mines -9/Materials History --------- Turn | Location | Event 2 | -11/Junkyard | Met Revision 17 56 | -11/Junkyard | Discovered new exit (range 8) 189 | -11/Junkyard | Entered Materials 233 | -10/Materials | Repaired Lgt. Ion Engine? 304 | -10/Materials | Build established: Mutant 574 | -10/Materials | Discovered new exit (range 7) 654 | -10/Materials | Lost 3 parts (1n1u1w) 887 | -10/Materials | Entered Mines 888 | -10/Mines | Learned location of Storage (-9) 945 | -10/Mines | Build established: Scavenger-Mutant 1025 | -10/Mines | Core integrity fell below 50% 1047 | -10/Mines | Core integrity fell below 20% 1049 | -10/Mines | Discovered new exit (range 5) 1066 | -10/Mines | Entered Materials 1066 | -9/Materials | Evolved 2 slots: Power x1, Weapon x1 1190 | -9/Materials | Self-destructed Last Messages --------------- 01024_ Critical hit (Burn: +37). 01026_ Acquired 1 matter. 01028_ System corrupted: Matter fused (-8). 01029_ Acquired 3 matter. 01029_ Acquired 5 matter. 01031_ Acquired 1 matter. 01034_ Lgt. Ion Engine destroyed. 01036_ Acquired 1 matter. 01038_ Lgt. Assault Rifle destroyed. 01049_ EXIT=FOUND 01051_ S-10 Pest destroyed. 01054_ G-47 Trooper misfires. 01055_ G-47 Trooper destroyed. 01060_ Acquired Flight Unit. 01060_ K-01 Serf collects debris. PARAMETERS=POWER+1,WEAPON+1 LOCATION=UNKNOWN GOAL=ESCAPE 01074_ Acquired VTOL Module. 01078_ Dropped Wheel. Map ----- +----------------------------------------------------+ | ????????????????????????????????????????????? | | ????????????????????????????????????????????? | | ????????????????????????????????????????????? | | ????????????????????????????????????????????? | | ????????????????????????????????????????????? | | ????????????????????????????????????????????? | | ????????????????????????????????????????????? | | ????????????????????????????????????????????? | | ????????????????????????????????????????????? | | ????????????????????????????????????????????? | | ????????????????????????????????????????????? | | ????????????????????????????????????????????? | | ????????????????????????????????????????????? | | ????????????????????????????????????????????? | | ????????????????????????????????????????????? | | ?????????????######+###########?????????????? | | ???????????? #?????????????? | | ???????????? #?????????????? | | ???????????? #?????????????? | | ????????????????###/######+####?????????????? | | ???????????????????????# #?????????????? | | ???????????????????????# """ #?????????????? | | ???????????????????????# """ #?????????????? | | ???????????????????????# """ #?????????????? | | ???????????????????????# #?????????????? | | ???????????????????????# @ #?????????????? | | ???????????????????????########?????????????? | | ????????????????????????????????????????????? | | ????????????????????????????????????????????? | | | | | | | | | | | | | | | | | | | | | | | | | | | | | | | | | | | | | | | | | | | +----------------------------------------------------+ Best States ------------- Heat Dissipation 35 Energy Generation 10 Energy Capacity 275 Matter Stores 374 Matter Capacity 400 Sight Range 16 Terrain Scan Density 10 ECM Strength 1 Evasion (%) 53 Item Schematics ----------------- None Robot Schematics ------------------ None Fabricated ------------ Nothing Alien Tech Used ----------------- None Achievements -------------- Shopping List Challenges ------------ None Game ------ Seed ContainmentUtilityDriver Manual? 0 Play Time 00:35:52 Cumulative 1.4 hours Start 2023.03.06 @ 20:51:44 End 2023.10.04 @ 19:14:04 Sessions 2 Manual Loads 0 Difficulty Rogue Special Mode None Game No. 3 Rogue 3 Adventurer 0 Explorer 0 Win Type - Total 0 Types 0/0/0/0/0/0/0/0/0 Lore% 1 Gallery% 3 Achievement% 5 Wizard Run 0 Options --------- ASCII 0 Keyboard 1 Movement Mouse Keybinds 0 Fullscreen 0 Font 20/All Caps Map View 113x50 Tactical HUD 1 Map Filters NONE Filters NONE Steam 1 RUN: e4e13745-917b-4e08-b356-fb7996ecb6b7